[Event "Titled Tuesday Blitz January 03 Early 2023"]
[White "Nigmatov, Ortik"]
[Black "Koutlas, Nikolaos"]
[WhiteFideId "14202131"]
[BlackFideId "25827138"]
[WhiteElo "2438"]
[BlackElo "2341"]
[Result "0-1"]
[Round "05"]
[TimeControl "180+2"]
[Date "2023.01.03"]
[WhiteClock "0:00:30"]
[BlackClock "0:00:09"]

1. c4 {[%clk 0:03:00]}  Nf6 {[%clk 0:02:56]} 2. Nf3 {[%clk 0:03:00]}  g6 {[%clk 0:02:53]} 3. g3 {[%clk 0:03:00]}  Bg7 {[%clk 0:02:53]} 4. Bg2 {[%clk 0:03:00]}  c5 {[%clk 0:02:54]} 5. O-O {[%clk 0:03:01]}  d5 {[%clk 0:02:51]} 6. cxd5 {[%clk 0:03:00]}  Nxd5 {[%clk 0:02:51]} 7. Nc3 {[%clk 0:02:59]}  Nc7 {[%clk 0:02:49]} 8. d3 {[%clk 0:02:59]}  O-O {[%clk 0:02:48]} 9. Be3 {[%clk 0:02:58]}  Bd4 {[%clk 0:02:36]} 10. Bh6 {[%clk 0:02:50]}  Bg7 {[%clk 0:02:34]} 11. Bxg7 {[%clk 0:02:51]}  Kxg7 {[%clk 0:02:35]} 12. Ne4 {[%clk 0:02:51]}  b6 {[%clk 0:02:26]} 13. d4 {[%clk 0:02:35]}  Bb7 {[%clk 0:02:20]} 14. Qd3 {[%clk 0:02:31]}  Nc6 {[%clk 0:02:02]} 15. dxc5 {[%clk 0:02:28]}  Qxd3 {[%clk 0:02:00]} 16. exd3 {[%clk 0:02:29]}  Nb4 {[%clk 0:01:55]} 17. cxb6 {[%clk 0:02:25]}  axb6 {[%clk 0:01:54]} 18. Ne5 {[%clk 0:02:23]}  Rfd8 {[%clk 0:01:46]} 19. Rac1 {[%clk 0:02:00]}  Ne6 {[%clk 0:01:40]} 20. a3 {[%clk 0:01:59]}  Nxd3 {[%clk 0:01:37]} 21. Nxd3 {[%clk 0:02:00]}  Rxd3 {[%clk 0:01:36]} 22. Rc4 {[%clk 0:01:58]}  Rb3 {[%clk 0:01:29]} 23. Nd2 {[%clk 0:01:55]}  Rxb2 {[%clk 0:01:29]} 24. Bxb7 {[%clk 0:01:54]}  Ra7 {[%clk 0:01:19]} 25. Bd5 {[%clk 0:01:31]}  Rxd2 {[%clk 0:01:17]} 26. Bxe6 {[%clk 0:01:31]}  fxe6 {[%clk 0:01:18]} 27. Rb4 {[%clk 0:01:31]}  Rxa3 {[%clk 0:00:55]} 28. Rxb6 {[%clk 0:01:30]}  Kf7 {[%clk 0:00:52]} 29. Re1 {[%clk 0:01:29]}  Raa2 {[%clk 0:00:52]} 30. Rf1 {[%clk 0:01:29]}  e5 {[%clk 0:00:50]} 31. Rb3 {[%clk 0:01:26]}  Re2 {[%clk 0:00:47]} 32. Rc3 {[%clk 0:01:18]}  e4 {[%clk 0:00:46]} 33. Rb3 {[%clk 0:01:18]}  Kf6 {[%clk 0:00:46]} 34. Rc3 {[%clk 0:01:17]}  Ke5 {[%clk 0:00:45]} 35. Rb3 {[%clk 0:01:17]}  e6 {[%clk 0:00:44]} 36. Rc3 {[%clk 0:01:17]}  h6 {[%clk 0:00:39]} 37. Rb3 {[%clk 0:01:16]}  g5 {[%clk 0:00:36]} 38. Rc3 {[%clk 0:01:11]}  g4 {[%clk 0:00:19]} 39. Rb3 {[%clk 0:01:11]}  Kf5 {[%clk 0:00:17]} 40. Rb5+ {[%clk 0:01:10]}  e5 {[%clk 0:00:17]} 41. Rb3 {[%clk 0:01:10]}  h5 {[%clk 0:00:17]} 42. Rc3 {[%clk 0:01:09]}  h4 {[%clk 0:00:17]} 43. gxh4 {[%clk 0:01:09]}  Kg6 {[%clk 0:00:17]} 44. Rb3 {[%clk 0:00:48]}  Kh5 {[%clk 0:00:16]} 45. Rb5 {[%clk 0:00:48]}  Kxh4 {[%clk 0:00:16]} 46. Rxe5 {[%clk 0:00:49]}  Rab2 {[%clk 0:00:13]} 47. Re8 {[%clk 0:00:34]}  Kg5 {[%clk 0:00:12]} 48. Rg8+ {[%clk 0:00:34]}  Kf5 {[%clk 0:00:12]} 49. Rf8+ {[%clk 0:00:34]}  Ke6 {[%clk 0:00:12]} 50. Kg2 {[%clk 0:00:34]}  e3 {[%clk 0:00:10]} 51. Kg3 {[%clk 0:00:33]}  Rxf2 {[%clk 0:00:10]} 52. Re1 {[%clk 0:00:32]}  Rxf8 {[%clk 0:00:09]} 53. Rxe3+ {[%clk 0:00:32]}  Kd7 {[%clk 0:00:09]} 54. Kxg4 {[%clk 0:00:32]}  Rxh2 {[%clk 0:00:09]} 55. Rd3+ {[%clk 0:00:31]}  Ke6 {[%clk 0:00:09]} 56. Re3+ {[%clk 0:00:31]}  Kd5 {[%clk 0:00:09]} 57. Rd3+ {[%clk 0:00:31]}  Ke4 {[%clk 0:00:10]} 58. Rd8 {[%clk 0:00:30]}  Rg2+ {[%clk 0:00:09]} 59. Kh3 {[%clk 0:00:30]}  Rxd8 {[%clk 0:00:09]} 60. Kxg2 {[%clk 0:00:30]}  Rd3 {[%clk 0:00:09]} 0-1


[Site "https://www.chess.com"]

[Event "Titled Tuesday Blitz January 03 Early 2023"]
[White "Kopylov, Alexander A."]
[Black "Hnydiuk, Aleksander"]
[WhiteFideId "4164857"]
[BlackFideId "1109057"]
[WhiteElo "2397"]
[BlackElo "2363"]
[Result "0-1"]
[Round "05"]
[TimeControl "180+2"]
[Date "2023.01.03"]
[WhiteClock "0:01:42"]
[BlackClock "0:00:51"]

1. e4 {[%clk 0:03:00]}  e5 {[%clk 0:02:57]} 2. Nf3 {[%clk 0:03:00]}  Nc6 {[%clk 0:02:58]} 3. Nc3 {[%clk 0:03:00]}  Nf6 {[%clk 0:02:57]} 4. h3 {[%clk 0:03:00]}  Be7 {[%clk 0:02:55]} 5. d4 {[%clk 0:02:59]}  exd4 {[%clk 0:02:50]} 6. Nxd4 {[%clk 0:03:00]}  O-O {[%clk 0:02:50]} 7. Nxc6 {[%clk 0:02:59]}  bxc6 {[%clk 0:02:48]} 8. Bc4 {[%clk 0:03:00]}  Bb4 {[%clk 0:02:42]} 9. O-O {[%clk 0:02:57]}  Bxc3 {[%clk 0:02:38]} 10. bxc3 {[%clk 0:02:57]}  Nxe4 {[%clk 0:02:39]} 11. Bd3 {[%clk 0:02:49]}  Re8 {[%clk 0:02:20]} 12. Re1 {[%clk 0:02:40]}  Nc5 {[%clk 0:02:11]} 13. Bxh7+ {[%clk 0:02:34]}  Kxh7 {[%clk 0:02:10]} 14. Qh5+ {[%clk 0:02:34]}  Kg8 {[%clk 0:02:10]} 15. Rxe8+ {[%clk 0:02:34]}  Qxe8 {[%clk 0:02:10]} 16. Qxc5 {[%clk 0:02:34]}  d6 {[%clk 0:01:55]} 17. Qa5 {[%clk 0:02:20]}  Qe1+ {[%clk 0:01:47]} 18. Kh2 {[%clk 0:02:20]}  Qxf2 {[%clk 0:01:41]} 19. Qxc7 {[%clk 0:02:19]}  Be6 {[%clk 0:01:26]} 20. Qxd6 {[%clk 0:02:06]}  Bd5 {[%clk 0:01:22]} 21. Qg3 {[%clk 0:02:06]}  Qxc2 {[%clk 0:01:05]} 22. Bf4 {[%clk 0:01:58]}  Re8 {[%clk 0:01:01]} 23. Rg1 {[%clk 0:01:53]}  Re2 {[%clk 0:00:59]} 24. Be5 {[%clk 0:01:45]}  Qg6 {[%clk 0:00:54]} 25. Qxg6 {[%clk 0:01:42]}  fxg6 {[%clk 0:00:55]} 26. a3 {[%clk 0:01:42]}  Rxe5 {[%clk 0:00:51]} 0-1


[Site "https://www.chess.com"]

[Event "Titled Tuesday Blitz January 03 Early 2023"]
[White "Zemlyanskii, Ivan"]
[Black "Yeritsyan, Hayk"]
[WhiteFideId "24249971"]
[BlackFideId "13307320"]
[WhiteElo "2300"]
[BlackElo "2241"]
[Result "1-0"]
[Round "05"]
[TimeControl "180+2"]
[Date "2023.01.03"]
[WhiteClock "0:00:08"]
[BlackClock "0:00:03"]

1. d4 {[%clk 0:03:00]}  Nf6 {[%clk 0:02:59]} 2. c4 {[%clk 0:03:01]}  e6 {[%clk 0:02:59]} 3. Nf3 {[%clk 0:03:02]}  d5 {[%clk 0:02:58]} 4. e3 {[%clk 0:03:01]}  c5 {[%clk 0:02:51]} 5. cxd5 {[%clk 0:03:01]}  Nxd5 {[%clk 0:02:48]} 6. Bb5+ {[%clk 0:03:01]}  Nc6 {[%clk 0:02:47]} 7. O-O {[%clk 0:02:56]}  cxd4 {[%clk 0:02:45]} 8. Nxd4 {[%clk 0:02:55]}  Bd7 {[%clk 0:02:44]} 9. Nxc6 {[%clk 0:02:55]}  bxc6 {[%clk 0:02:39]} 10. Be2 {[%clk 0:02:53]}  Be7 {[%clk 0:02:35]} 11. Nd2 {[%clk 0:02:46]}  O-O {[%clk 0:02:33]} 12. Nc4 {[%clk 0:02:46]}  Rb8 {[%clk 0:02:25]} 13. e4 {[%clk 0:02:38]}  Nb6 {[%clk 0:02:20]} 14. Ne5 {[%clk 0:02:32]}  Bf6 {[%clk 0:02:15]} 15. Bf4 {[%clk 0:02:27]}  Rc8 {[%clk 0:02:10]} 16. Qc2 {[%clk 0:02:19]}  Qe7 {[%clk 0:01:59]} 17. Rfd1 {[%clk 0:02:15]}  Rfd8 {[%clk 0:01:51]} 18. Ng4 {[%clk 0:02:01]}  e5 {[%clk 0:01:47]} 19. Nxf6+ {[%clk 0:02:01]}  Qxf6 {[%clk 0:01:45]} 20. Be3 {[%clk 0:02:01]}  Be6 {[%clk 0:01:43]} 21. b3 {[%clk 0:01:59]}  Qg6 {[%clk 0:01:12]} 22. f3 {[%clk 0:01:51]}  h5 {[%clk 0:01:10]} 23. Qc3 {[%clk 0:01:46]}  Re8 {[%clk 0:00:48]} 24. Rd6 {[%clk 0:01:26]}  Nd7 {[%clk 0:00:38]} 25. Rad1 {[%clk 0:01:24]}  Nf6 {[%clk 0:00:38]} 26. Bf2 {[%clk 0:01:12]}  c5 {[%clk 0:00:28]} 27. Bb5 {[%clk 0:00:54]}  Rf8 {[%clk 0:00:26]} 28. Qxe5 {[%clk 0:00:51]}  c4 {[%clk 0:00:23]} 29. bxc4 {[%clk 0:00:41]}  Bxc4 {[%clk 0:00:24]} 30. Bxc4 {[%clk 0:00:29]}  Rxc4 {[%clk 0:00:25]} 31. R6d2 {[%clk 0:00:25]}  Re8 {[%clk 0:00:22]} 32. Qg3 {[%clk 0:00:23]}  Qh6 {[%clk 0:00:21]} 33. Bxa7 {[%clk 0:00:19]}  Rc1 {[%clk 0:00:18]} 34. Qf2 {[%clk 0:00:14]}  Rec8 {[%clk 0:00:15]} 35. Be3 {[%clk 0:00:13]}  Qg6 {[%clk 0:00:11]} 36. Qe1 {[%clk 0:00:13]}  R1c3 {[%clk 0:00:11]} 37. Rd8+ {[%clk 0:00:11]}  Kh7 {[%clk 0:00:09]} 38. Rxc8 {[%clk 0:00:11]}  Rxc8 {[%clk 0:00:10]} 39. Qe2 {[%clk 0:00:12]}  h4 {[%clk 0:00:10]} 40. h3 {[%clk 0:00:09]}  Nh5 {[%clk 0:00:10]} 41. Qe1 {[%clk 0:00:06]}  Qf6 {[%clk 0:00:07]} 42. Bf2 {[%clk 0:00:06]}  g5 {[%clk 0:00:07]} 43. a4 {[%clk 0:00:07]}  Nf4 {[%clk 0:00:06]} 44. a5 {[%clk 0:00:07]}  Rc2 {[%clk 0:00:06]} 45. Rd2 {[%clk 0:00:05]}  Rc4 {[%clk 0:00:03]} 46. Rd1 {[%clk 0:00:04]}  Ra4 {[%clk 0:00:04]} 47. Rb1 {[%clk 0:00:03]}  Ra2 {[%clk 0:00:03]} 48. Rb6 {[%clk 0:00:02]}  Qe5 {[%clk 0:00:02]} 49. Rb1 {[%clk 0:00:03]}  Ra4 {[%clk 0:00:02]} 50. Be3 {[%clk 0:00:02]}  Ra2 {[%clk 0:00:02]} 51. Bxf4 {[%clk 0:00:02]}  Qxf4 {[%clk 0:00:03]} 52. Ra1 {[%clk 0:00:01]}  Rb2 {[%clk 0:00:03]} 53. a6 {[%clk 0:00:02]}  Qc7 {[%clk 0:00:02]} 54. a7 {[%clk 0:00:02]}  Qc2 {[%clk 0:00:03]} 55. Qf1 {[%clk 0:00:02]}  Qc5+ {[%clk 0:00:04]} 56. Kh1 {[%clk 0:00:02]}  Rf2 {[%clk 0:00:03]} 57. a8=Q {[%clk 0:00:03]}  Rxf1+ {[%clk 0:00:03]} 58. Rxf1 {[%clk 0:00:04]}  Qe5 {[%clk 0:00:03]} 59. Qa1 {[%clk 0:00:05]}  Qf4 {[%clk 0:00:04]} 60. Qc1 {[%clk 0:00:05]}  Qf6 {[%clk 0:00:04]} 61. f4 {[%clk 0:00:05]}  g4 {[%clk 0:00:04]} 62. hxg4 {[%clk 0:00:05]}  Qd4 {[%clk 0:00:04]} 63. Qe1 {[%clk 0:00:03]}  Kg6 {[%clk 0:00:02]} 64. g5 {[%clk 0:00:04]}  h3 {[%clk 0:00:01]} 65. f5+ {[%clk 0:00:05]}  Kh5 {[%clk 0:00:01]} 66. Qe2+ {[%clk 0:00:05]}  Kh4 {[%clk 0:00:01]} 67. Qf2+ {[%clk 0:00:05]}  Qxf2 {[%clk 0:00:01]} 68. Rxf2 {[%clk 0:00:06]}  hxg2+ {[%clk 0:00:02]} 69. Kxg2 {[%clk 0:00:07]}  Kxg5 {[%clk 0:00:02]} 70. Kf3 {[%clk 0:00:08]}  Kf6 {[%clk 0:00:03]} 71. Ke3 {[%clk 0:00:08]} 1-0


[Site "https://www.chess.com"]

[Event "Titled Tuesday Blitz January 03 Early 2023"]
[White "Krivonosov, Oleg"]
[Black "Sourath Biswas"]
[WhiteFideId "11600349"]
[BlackFideId "35091484"]
[WhiteElo "2359"]
[BlackElo "2281"]
[Result "1/2-1/2"]
[Round "05"]
[TimeControl "180+2"]
[Date "2023.01.03"]
[WhiteClock "0:01:27"]
[BlackClock "0:00:10"]

1. Nf3 {[%clk 0:03:00]}  Nf6 {[%clk 0:03:00]} 2. c4 {[%clk 0:03:00]}  g6 {[%clk 0:03:01]} 3. Nc3 {[%clk 0:02:59]}  Bg7 {[%clk 0:03:01]} 4. e4 {[%clk 0:02:59]}  O-O {[%clk 0:03:02]} 5. d4 {[%clk 0:03:00]}  d6 {[%clk 0:03:00]} 6. Be2 {[%clk 0:03:00]}  e5 {[%clk 0:03:00]} 7. dxe5 {[%clk 0:03:01]}  dxe5 {[%clk 0:02:59]} 8. Qxd8 {[%clk 0:03:01]}  Rxd8 {[%clk 0:03:00]} 9. Bg5 {[%clk 0:03:02]}  Re8 {[%clk 0:02:57]} 10. Nd5 {[%clk 0:03:01]}  Nxd5 {[%clk 0:02:57]} 11. cxd5 {[%clk 0:03:02]}  c6 {[%clk 0:02:55]} 12. Bc4 {[%clk 0:03:02]}  Nd7 {[%clk 0:02:39]} 13. dxc6 {[%clk 0:03:01]}  bxc6 {[%clk 0:02:32]} 14. O-O {[%clk 0:03:01]}  Nb6 {[%clk 0:02:31]} 15. Bb3 {[%clk 0:03:01]}  c5 {[%clk 0:02:30]} 16. Nd2 {[%clk 0:02:57]}  Be6 {[%clk 0:02:18]} 17. Bxe6 {[%clk 0:02:55]}  Rxe6 {[%clk 0:02:19]} 18. Rfc1 {[%clk 0:02:53]}  Bf8 {[%clk 0:02:15]} 19. Be3 {[%clk 0:02:51]}  Rd8 {[%clk 0:02:00]} 20. Nc4 {[%clk 0:02:49]}  f5 {[%clk 0:01:53]} 21. f3 {[%clk 0:02:35]}  Rd3 {[%clk 0:01:52]} 22. Bf2 {[%clk 0:02:29]}  fxe4 {[%clk 0:01:39]} 23. fxe4 {[%clk 0:02:27]}  Be7 {[%clk 0:00:39]} 24. b3 {[%clk 0:02:13]}  h5 {[%clk 0:00:23]} 25. Rd1 {[%clk 0:02:07]}  Rxd1+ {[%clk 0:00:23]} 26. Rxd1 {[%clk 0:02:07]}  Nxc4 {[%clk 0:00:23]} 27. bxc4 {[%clk 0:02:08]}  Ra6 {[%clk 0:00:23]} 28. Rd5 {[%clk 0:02:04]}  Rxa2 {[%clk 0:00:23]} 29. Bxc5 {[%clk 0:02:04]}  Bxc5+ {[%clk 0:00:19]} 30. Rxc5 {[%clk 0:02:05]}  Rc2 {[%clk 0:00:17]} 31. h4 {[%clk 0:01:58]}  Kf7 {[%clk 0:00:16]} 32. Kh2 {[%clk 0:01:53]}  Ke6 {[%clk 0:00:12]} 33. Kg3 {[%clk 0:01:52]}  a5 {[%clk 0:00:09]} 34. Rxa5 {[%clk 0:01:47]}  Rxc4 {[%clk 0:00:09]} 35. Ra6+ {[%clk 0:01:47]}  Kf7 {[%clk 0:00:10]} 36. Kf3 {[%clk 0:01:46]}  Rc3+ {[%clk 0:00:10]} 37. Kf2 {[%clk 0:01:46]}  Kg7 {[%clk 0:00:10]} 38. Re6 {[%clk 0:01:43]}  Rc5 {[%clk 0:00:09]} 39. Ke3 {[%clk 0:01:41]}  Kf7 {[%clk 0:00:10]} 40. Rd6 {[%clk 0:01:41]}  Rc3+ {[%clk 0:00:08]} 41. Rd3 {[%clk 0:01:41]}  Rc2 {[%clk 0:00:07]} 42. g3 {[%clk 0:01:41]}  Rg2 {[%clk 0:00:06]} 43. Kf3 {[%clk 0:01:41]}  Rc2 {[%clk 0:00:06]} 44. Rb3 {[%clk 0:01:40]}  Kf6 {[%clk 0:00:06]} 45. Rb6+ {[%clk 0:01:40]}  Kf7 {[%clk 0:00:07]} 46. Rb5 {[%clk 0:01:40]}  Kf6 {[%clk 0:00:07]} 47. Rb3 {[%clk 0:01:39]}  Kf7 {[%clk 0:00:07]} 48. Rd3 {[%clk 0:01:38]}  Rc4 {[%clk 0:00:07]} 49. Ra3 {[%clk 0:01:36]}  Kf6 {[%clk 0:00:07]} 50. Ke3 {[%clk 0:01:36]}  Kf7 {[%clk 0:00:08]} 51. Ra5 {[%clk 0:01:35]}  Kf6 {[%clk 0:00:08]} 52. Rd5 {[%clk 0:01:35]}  Rc3+ {[%clk 0:00:08]} 53. Rd3 {[%clk 0:01:35]}  Rc2 {[%clk 0:00:09]} 54. Kf3 {[%clk 0:01:34]}  Rc4 {[%clk 0:00:09]} 55. Re3 {[%clk 0:01:34]}  Rc2 {[%clk 0:00:08]} 56. g4 {[%clk 0:01:32]}  hxg4+ {[%clk 0:00:08]} 57. Kxg4 {[%clk 0:01:33]}  Rg2+ {[%clk 0:00:09]} 58. Rg3 {[%clk 0:01:32]}  Rxg3+ {[%clk 0:00:09]} 59. Kxg3 {[%clk 0:01:31]}  Kg7 {[%clk 0:00:09]} 60. Kh3 {[%clk 0:01:30]}  Kh7 {[%clk 0:00:10]} 61. Kg3 {[%clk 0:01:30]}  Kg7 {[%clk 0:00:10]} 62. Kf3 {[%clk 0:01:30]}  Kh7 {[%clk 0:00:10]} 63. Kg3 {[%clk 0:01:27]}  Kg7 {[%clk 0:00:10]} 1/2-1/2


[Site "https://www.chess.com"]

[Event "Titled Tuesday Blitz January 03 Early 2023"]
[White "Harshavardhan G B"]
[Black "Maksimenko, Viktor"]
[WhiteFideId "25059009"]
[BlackFideId "13710478"]
[WhiteElo "2408"]
[BlackElo "2196"]
[Result "1-0"]
[Round "05"]
[TimeControl "180+2"]
[Date "2023.01.03"]
[WhiteClock "0:00:16"]
[BlackClock "0:00:06"]

1. Nf3 {[%clk 0:03:00]}  Nf6 {[%clk 0:02:54]} 2. c4 {[%clk 0:02:59]}  e6 {[%clk 0:02:53]} 3. Nc3 {[%clk 0:02:59]}  d5 {[%clk 0:02:52]} 4. d4 {[%clk 0:02:58]}  c5 {[%clk 0:02:52]} 5. cxd5 {[%clk 0:02:58]}  cxd4 {[%clk 0:02:52]} 6. Qa4+ {[%clk 0:02:55]}  Bd7 {[%clk 0:02:51]} 7. Qxd4 {[%clk 0:02:55]}  exd5 {[%clk 0:02:52]} 8. Nxd5 {[%clk 0:02:55]}  Qa5+ {[%clk 0:02:52]} 9. Nc3 {[%clk 0:02:53]}  Nc6 {[%clk 0:02:53]} 10. Qd1 {[%clk 0:02:43]}  Bb4 {[%clk 0:02:52]} 11. Bd2 {[%clk 0:02:43]}  Rd8 {[%clk 0:02:45]} 12. a3 {[%clk 0:02:41]}  Be7 {[%clk 0:02:26]} 13. e3 {[%clk 0:02:36]}  Bg4 {[%clk 0:02:23]} 14. Be2 {[%clk 0:02:35]}  Bxf3 {[%clk 0:02:23]} 15. Bxf3 {[%clk 0:02:35]}  Ne5 {[%clk 0:02:23]} 16. Be2 {[%clk 0:02:33]}  O-O {[%clk 0:02:19]} 17. O-O {[%clk 0:02:27]}  Qb6 {[%clk 0:02:14]} 18. Qc2 {[%clk 0:02:25]}  Bd6 {[%clk 0:02:00]} 19. h3 {[%clk 0:02:17]}  Bb8 {[%clk 0:01:59]} 20. Rfd1 {[%clk 0:02:15]}  Qc7 {[%clk 0:01:54]} 21. Rac1 {[%clk 0:02:07]}  Rfe8 {[%clk 0:01:42]} 22. Qf5 {[%clk 0:01:53]}  Nc4 {[%clk 0:01:23]} 23. Bxc4 {[%clk 0:01:50]}  Qxc4 {[%clk 0:01:24]} 24. Be1 {[%clk 0:01:48]}  h6 {[%clk 0:01:17]} 25. g3 {[%clk 0:01:27]}  Qb3 {[%clk 0:01:10]} 26. Qc2 {[%clk 0:01:25]}  Qe6 {[%clk 0:01:06]} 27. Kg2 {[%clk 0:01:19]}  Qc6+ {[%clk 0:01:05]} 28. Kg1 {[%clk 0:01:17]}  Qe6 {[%clk 0:01:02]} 29. Kh2 {[%clk 0:01:12]}  h5 {[%clk 0:01:02]} 30. Rxd8 {[%clk 0:01:09]}  Rxd8 {[%clk 0:01:02]} 31. Rd1 {[%clk 0:01:10]}  Rc8 {[%clk 0:01:03]} 32. h4 {[%clk 0:00:56]}  Ng4+ {[%clk 0:01:02]} 33. Kg1 {[%clk 0:00:55]}  a6 {[%clk 0:00:49]} 34. Qe4 {[%clk 0:00:50]}  Qb3 {[%clk 0:00:47]} 35. Qf5 {[%clk 0:00:44]}  Re8 {[%clk 0:00:34]} 36. Qxh5 {[%clk 0:00:26]}  Nf6 {[%clk 0:00:34]} 37. Qe2 {[%clk 0:00:27]}  Ba7 {[%clk 0:00:32]} 38. Kg2 {[%clk 0:00:22]}  b5 {[%clk 0:00:31]} 39. Rd6 {[%clk 0:00:22]}  Bb8 {[%clk 0:00:13]} 40. Rxa6 {[%clk 0:00:20]}  b4 {[%clk 0:00:14]} 41. Rb6 {[%clk 0:00:20]}  Nd5 {[%clk 0:00:11]} 42. Nxd5 {[%clk 0:00:18]}  Qxd5+ {[%clk 0:00:12]} 43. Qf3 {[%clk 0:00:19]}  Qa2 {[%clk 0:00:06]} 44. Rxb4 {[%clk 0:00:17]}  Ba7 {[%clk 0:00:07]} 45. Bc3 {[%clk 0:00:17]}  Qb1 {[%clk 0:00:06]} 46. Rg4 {[%clk 0:00:16]} 1-0


[Site "https://www.chess.com"]

[Event "Titled Tuesday Blitz January 03 Early 2023"]
[White "Rakhmatullaev, Almas"]
[Black "Christie, Joshua"]
[WhiteFideId "14205793"]
[BlackFideId "7402074"]
[WhiteElo "2275"]
[BlackElo "2294"]
[Result "1/2-1/2"]
[Round "05"]
[TimeControl "180+2"]
[Date "2023.01.03"]
[WhiteClock "0:00:03"]
[BlackClock "0:00:04"]

1. e4 {[%clk 0:02:56]}  e6 {[%clk 0:03:00]} 2. d4 {[%clk 0:02:56]}  d5 {[%clk 0:03:00]} 3. Nc3 {[%clk 0:02:56]}  Bb4 {[%clk 0:03:00]} 4. Ne2 {[%clk 0:02:51]}  dxe4 {[%clk 0:03:00]} 5. a3 {[%clk 0:02:50]}  Bxc3+ {[%clk 0:03:00]} 6. Nxc3 {[%clk 0:02:51]}  Nc6 {[%clk 0:03:01]} 7. d5 {[%clk 0:02:46]}  exd5 {[%clk 0:03:01]} 8. Qxd5 {[%clk 0:02:47]}  Be6 {[%clk 0:02:59]} 9. Qxe4 {[%clk 0:02:46]}  Nf6 {[%clk 0:03:00]} 10. Qa4 {[%clk 0:02:46]}  O-O {[%clk 0:02:58]} 11. Be3 {[%clk 0:02:32]}  Ng4 {[%clk 0:02:55]} 12. Qf4 {[%clk 0:02:00]}  Nxe3 {[%clk 0:02:49]} 13. fxe3 {[%clk 0:02:00]}  Qe7 {[%clk 0:02:17]} 14. Bd3 {[%clk 0:01:59]}  Rad8 {[%clk 0:02:11]} 15. O-O-O {[%clk 0:01:59]}  f6 {[%clk 0:02:07]} 16. Qe4 {[%clk 0:01:57]}  g6 {[%clk 0:02:03]} 17. g4 {[%clk 0:01:56]}  Ne5 {[%clk 0:02:03]} 18. h3 {[%clk 0:01:46]}  c6 {[%clk 0:01:48]} 19. Be2 {[%clk 0:01:40]}  Kg7 {[%clk 0:01:46]} 20. h4 {[%clk 0:01:37]}  Rxd1+ {[%clk 0:01:42]} 21. Rxd1 {[%clk 0:01:38]}  Rd8 {[%clk 0:01:40]} 22. Rd4 {[%clk 0:01:33]}  Nf7 {[%clk 0:01:28]} 23. Bc4 {[%clk 0:00:55]}  Rxd4 {[%clk 0:01:26]} 24. exd4 {[%clk 0:00:53]}  Nd8 {[%clk 0:01:26]} 25. d5 {[%clk 0:00:46]}  cxd5 {[%clk 0:01:24]} 26. Bxd5 {[%clk 0:00:44]}  b6 {[%clk 0:01:17]} 27. b4 {[%clk 0:00:34]}  Qd6 {[%clk 0:01:12]} 28. g5 {[%clk 0:00:28]}  Bf7 {[%clk 0:01:04]} 29. Qd4 {[%clk 0:00:23]}  Qe5 {[%clk 0:00:41]} 30. Qxe5 {[%clk 0:00:19]}  fxe5 {[%clk 0:00:42]} 31. Kd2 {[%clk 0:00:19]}  h6 {[%clk 0:00:39]} 32. Ke3 {[%clk 0:00:18]}  hxg5 {[%clk 0:00:37]} 33. hxg5 {[%clk 0:00:19]}  Bxd5 {[%clk 0:00:35]} 34. Nxd5 {[%clk 0:00:20]}  Ne6 {[%clk 0:00:36]} 35. Ke4 {[%clk 0:00:20]}  Nxg5+ {[%clk 0:00:37]} 36. Kxe5 {[%clk 0:00:21]}  Nf3+ {[%clk 0:00:36]} 37. Ke4 {[%clk 0:00:19]}  Ng5+ {[%clk 0:00:34]} 38. Kf4 {[%clk 0:00:19]}  Nf7 {[%clk 0:00:32]} 39. c4 {[%clk 0:00:14]}  Kf8 {[%clk 0:00:32]} 40. Nc7 {[%clk 0:00:11]}  Ke7 {[%clk 0:00:28]} 41. Nb5 {[%clk 0:00:11]}  a5 {[%clk 0:00:20]} 42. c5 {[%clk 0:00:11]}  bxc5 {[%clk 0:00:11]} 43. bxa5 {[%clk 0:00:11]}  Kd7 {[%clk 0:00:11]} 44. a6 {[%clk 0:00:11]}  Kc6 {[%clk 0:00:09]} 45. a7 {[%clk 0:00:11]}  Kb7 {[%clk 0:00:10]} 46. Ke4 {[%clk 0:00:08]}  g5 {[%clk 0:00:07]} 47. a4 {[%clk 0:00:06]}  g4 {[%clk 0:00:05]} 48. a5 {[%clk 0:00:05]}  g3 {[%clk 0:00:03]} 49. Kf3 {[%clk 0:00:05]}  c4 {[%clk 0:00:03]} 50. Kxg3 {[%clk 0:00:05]}  c3 {[%clk 0:00:03]} 51. Nxc3 {[%clk 0:00:04]}  Kxa7 {[%clk 0:00:04]} 52. Kf3 {[%clk 0:00:03]}  Ka6 {[%clk 0:00:04]} 53. Ke4 {[%clk 0:00:03]}  Kxa5 {[%clk 0:00:04]} 1/2-1/2


[Site "https://www.chess.com"]

[Event "Titled Tuesday Blitz January 03 Early 2023"]
[White "Ordekalog"]
[Black "Filgueira, Hernan"]
[BlackFideId "101770"]
[WhiteElo "2701"]
[BlackElo "2283"]
[Result "0-1"]
[Round "05"]
[TimeControl "180+2"]
[Date "2023.01.03"]
[WhiteClock "0:00:01"]
[BlackClock "0:00:10"]

1. d4 {[%clk 0:03:00]}  d5 {[%clk 0:02:59]} 2. c4 {[%clk 0:03:00]}  e6 {[%clk 0:02:59]} 3. Nc3 {[%clk 0:02:59]}  c6 {[%clk 0:02:59]} 4. e4 {[%clk 0:02:58]}  Bb4 {[%clk 0:02:59]} 5. Bd3 {[%clk 0:02:55]}  Ne7 {[%clk 0:02:54]} 6. Ne2 {[%clk 0:02:52]}  c5 {[%clk 0:02:47]} 7. a3 {[%clk 0:02:48]}  Bxc3+ {[%clk 0:02:45]} 8. bxc3 {[%clk 0:02:48]}  cxd4 {[%clk 0:02:38]} 9. cxd4 {[%clk 0:02:47]}  Nbc6 {[%clk 0:02:37]} 10. O-O {[%clk 0:02:44]}  O-O {[%clk 0:02:34]} 11. Bb2 {[%clk 0:02:32]}  b6 {[%clk 0:02:23]} 12. Re1 {[%clk 0:02:28]}  Ba6 {[%clk 0:02:20]} 13. Rc1 {[%clk 0:02:14]}  dxc4 {[%clk 0:02:09]} 14. Bxc4 {[%clk 0:02:15]}  Bxc4 {[%clk 0:02:09]} 15. Rxc4 {[%clk 0:02:16]}  Na5 {[%clk 0:02:08]} 16. Rc3 {[%clk 0:02:12]}  Qd7 {[%clk 0:02:07]} 17. Rg3 {[%clk 0:02:05]}  Nc4 {[%clk 0:01:54]} 18. Ba1 {[%clk 0:02:04]}  Rfc8 {[%clk 0:01:48]} 19. Nf4 {[%clk 0:02:01]}  Rc7 {[%clk 0:01:28]} 20. d5 {[%clk 0:01:21]}  Ng6 {[%clk 0:00:57]} 21. Bxg7 {[%clk 0:00:34]}  Kxg7 {[%clk 0:00:41]} 22. Nh5+ {[%clk 0:00:34]}  Kh8 {[%clk 0:00:35]} 23. f4 {[%clk 0:00:23]}  e5 {[%clk 0:00:29]} 24. f5 {[%clk 0:00:16]}  Qe7 {[%clk 0:00:29]} 25. fxg6 {[%clk 0:00:15]}  fxg6 {[%clk 0:00:30]} 26. Rd3 {[%clk 0:00:01]}  Qc5+ {[%clk 0:00:24]} 27. Kh1 {[%clk 0:00:01]}  gxh5 {[%clk 0:00:24]} 28. d6 {[%clk 0:00:02]}  Rd7 {[%clk 0:00:21]} 29. Rd5 {[%clk 0:00:02]}  Qf2 {[%clk 0:00:16]} 30. Rf1 {[%clk 0:00:01]}  Qh4 {[%clk 0:00:15]} 31. Qf3 {[%clk 0:00:01]}  Rg8 {[%clk 0:00:11]} 32. g3 {[%clk 0:00:01]}  Qg5 {[%clk 0:00:10]} 33. h4 {[%clk 0:00:01]}  Qg6 {[%clk 0:00:10]} 0-1


[Site "https://www.chess.com"]